bitfinex/quotes_SOLUSD_20220117
["timestamp","ask_amount","ask_price","bid_price","bid_amount"]
[1642384257407,43.1960211,146.01,145.93,0.26]
[1642384257603,43.1960211,146.01,145.93,23.9371]
[1642384257804,43.1960211,146.01,145.93,30.1871]
[1642384258205,43.1960211,146.01,145.93,24.1871]
[1642384259904,38.05896633,146.04,145.93,30.1871]
[1642384260104,38.05896633,146.04,145.93,24.1871]
[1642384260105,44.05896633,146.04,145.93,24.1871]
[1642384260305,44.30896633,146.04,145.93,24.1871]
[1642384260909,43.68842799,146.03,145.93,34.4599]
[1642384261109,43.68842799,146.03,145.93,23.6771]
[1642384261308,49.93842799,146.03,145.93,23.6771]
[1642384261707,51.63920387,146.03,145.93,23.6771]
[1642384262107,55.5006702,146.03,145.93,23.6771]
[1642384262307,55.5006702,146.03,145.93,23.9271]
[1642384262907,53.79989432,146.03,145.94,0.26]
[1642384263112,47.79989432,146.03,145.94,7.208]
[1642384263315,47.79989432,146.03,145.94,7.458]
[1642384264015,47.79989432,146.03,145.94,21.84495875]
[1642384264212,4.11146633,146.03,145.94,21.84495875]
[1642384264412,0.25,146.03,145.95,24.8711]
[1642384264811,34.1975,146.04,145.95,25.1211]
[1642384264812,40.4475,146.04,145.95,25.1211]
[1642384265013,34.4475,146.04,145.95,25.1211]
[1642384265839,40.89040258,146.03,145.95,25.1211]
[1642384266235,41.14040258,146.03,145.95,25.1211]
[1642384267736,41.14040258,146.03,145.95,31.1211]
[1642384268538,41.14040258,146.03,145.95,25.1211]
[1642384268738,40.89040258,146.03,145.95,25.1211]
[1642384268940,41.14040258,146.03,145.95,31.1211]
[1642384269141,40.89040258,146.03,145.95,31.1211]
[1642384269339,41.14040258,146.03,145.95,31.1211]
[1642384270339,41.14040258,146.03,145.95,25.1211]
[1642384272340,47.14040258,146.03,145.95,25.1211]
[1642384273548,3.86146633,146.06,145.96,0.26]
[1642384273748,13.70146633,146.06,145.96,0.26]
[1642384273947,19.95146633,146.06,145.96,0.26]
[1642384274347,24.4569,146.05,145.96,0.26]
[1642384274647,37.71199512,146.04,145.95,25.1211]
[1642384274847,37.96199512,146.04,145.95,25.1211]
[1642384275048,6.0,146.05,145.95,25.1211]
[1642384275248,9.84,146.06,145.96,0.26]
[1642384276055,36.46679694,146.05,145.96,0.26]
[1642384276649,36.46679694,146.05,145.95,31.1211]
[1642384277251,36.46679694,146.05,145.95,25.1211]
[1642384277460,1.94753309,146.04,145.95,25.1211]
[1642384277950,2.19753309,146.04,145.95,25.1211]
[1642384278354,37.21066349,146.02,145.95,24.8711]
[1642384279855,37.46066349,146.02,145.95,24.8711]
[1642384280656,1.94753309,146.03,145.95,24.8711]
[1642384280956,1.94753309,146.03,145.96,0.26]
[1642384281158,2.19753309,146.03,145.96,0.26]
[1642384282259,47.0580692,146.02,145.96,0.26]
[1642384282459,47.0580692,146.02,145.95,24.3811]
[1642384283358,47.0580692,146.02,145.95,30.3811]
[1642384283763,47.0580692,146.02,145.95,24.1311]
[1642384283962,0.26,146.01,145.95,24.1311]
[1642384285161,0.26,146.01,145.95,24.3811]
[1642384286367,49.00560229,146.02,145.95,24.3811]
[1642384286764,1.94753309,146.02,145.96,0.26]
[1642384287666,1.94753309,146.03,145.96,0.26]
[1642384287866,2.19753309,146.03,145.96,0.26]
[1642384290169,0.26,146.02,145.96,0.26]
[1642384293471,0.26,146.02,145.95,30.3811]
[1642384294074,0.26,146.02,145.95,24.3811]
[1642384294271,2.20753309,146.02,145.95,24.3811]
[1642384294471,44.95114532,146.01,145.95,24.3811]
[1642384294671,44.95114532,146.01,145.91,1.89019805]
[1642384294672,45.20114532,146.01,145.91,1.89019805]
[1642384294872,22.8045,146.0,145.91,7.89019805]
[1642384295073,30.9415,146.0,145.91,1.89019805]
[1642384295277,31.1915,146.0,145.91,1.89019805]
[1642384295471,31.1915,146.0,145.9,25.24839805]
[1642384296173,31.1915,146.0,145.9,25.49839805]
[1642384296372,33.3325,146.0,145.9,25.49839805]
[1642384296579,46.72522258,145.98,145.9,23.6082]
[1642384296974,46.97522258,145.98,145.9,23.6082]
[1642384298377,0.26,145.97,145.9,23.6082]
[1642384300276,0.25,145.98,145.91,0.26]
[1642384300683,2.19753309,145.99,145.91,0.26]
[1642384300977,1.94753309,145.99,145.91,0.26]
[1642384301378,47.53394548,145.98,145.91,0.26]
[1642384302079,0.26,145.97,145.9,29.6082]
[1642384302678,0.26,145.97,145.9,23.6082]
[1642384303879,0.26,145.97,145.9,29.6082]
[1642384304083,0.26,145.97,145.9,23.6082]
[1642384304879,0.26,145.97,145.9,29.6082]
[1642384305081,0.26,145.97,145.9,23.6082]
[1642384306781,0.26,145.97,145.9,23.3582]
[1642384307581,0.26,145.97,145.87,25.89939805]
[1642384307781,24.8627,145.97,145.88,24.4998]
[1642384308183,25.1127,145.97,145.88,30.4998]
[1642384308784,25.1127,145.97,145.88,30.7498]
[1642384311888,25.1127,145.97,145.88,31.75047317]
[1642384312094,25.1127,145.97,145.89,0.26]
[1642384312987,25.1127,145.97,145.88,30.7498]
[1642384315191,25.1127,145.97,145.88,31.75047317]
[1642384315592,24.8627,145.97,145.88,31.75047317]
[1642384315791,25.1127,145.97,145.88,31.75047317]
[1642384316191,24.8627,145.97,145.88,31.75047317]
[1642384317295,24.8627,145.97,145.88,36.26808898]
[1642384317494,0.26,145.97,145.89,0.26]
[1642384318095,0.26,145.97,145.88,31.50047317]
[1642384318296,10.1,145.97,145.88,6.0]
[1642384318695,33.2846,145.97,145.86,32.48299805]
[1642384319195,33.2846,145.97,145.87,1.89019805]
[1642384319395,43.5645,145.97,145.87,8.14019805]
[1642384319797,49.5645,145.97,145.87,8.14019805]
[1642384320299,49.5645,145.97,145.87,6.25]
[1642384320711,49.5645,145.97,145.85,1.89019805]
[1642384320899,68.15,145.92,145.85,1.89019805]
[1642384321103,68.15,145.9,145.85,1.89019805]
[1642384321299,9.84,145.89,145.85,1.89019805]
[1642384321722,16.09,145.89,145.85,1.89019805]
[1642384321923,10.09,145.89,145.85,1.89019805]
[1642384322227,16.09,145.89,145.85,1.89019805]
[1642384323123,16.09,145.89,145.8,13.15662759]
[1642384323323,43.7909522,145.88,145.8,0.25]
[1642384323724,44.0409522,145.88,145.8,0.25]
[1642384323925,0.26,145.87,145.8,0.25]
[1642384324525,0.26,145.87,145.79,2.14019805]
[1642384324926,0.26,145.87,145.8,0.26]
[1642384325326,16.09,145.89,145.8,0.26]
[1642384325727,15.84,145.89,145.8,0.26]
[1642384326829,15.84,145.89,145.8,2.15019805]
[1642384327029,15.84,145.89,145.83,10.2803]
[1642384327428,15.84,145.89,145.84,0.26]
[1642384328231,15.84,145.89,145.84,12.87497543]
[1642384328430,15.84,145.89,145.84,23.40477543]
[1642384328730,9.84,145.93,145.84,23.40477543]
[1642384328931,15.84,145.93,145.84,29.40477543]
[1642384329430,15.84,145.93,145.84,97.55477543]
[1642384329732,61.93974174,145.93,145.84,29.15477543]
[1642384329930,61.93974174,145.93,145.84,16.5398]
[1642384329931,62.18974174,145.93,145.84,16.5398]
[1642384330530,62.18974174,145.93,145.84,10.5398]
[1642384330732,55.93974174,145.93,145.84,10.5398]
[1642384330933,9.84,145.93,145.84,16.5398]
[1642384331132,9.84,145.93,145.84,16.7898]
[1642384331632,9.84,145.93,145.84,84.9398]
[1642384331835,9.84,145.93,145.85,14.95121568]
[1642384332035,9.84,145.93,145.87,10.2778]
[1642384332435,9.84,145.93,145.88,0.26]
[1642384335240,9.84,145.93,145.88,0.65092498]
[1642384335440,9.84,145.93,145.88,0.26]
[1642384339048,9.84,145.96,145.88,0.26]
[1642384339244,34.96290773,145.95,145.87,10.5278]
[1642384339850,0.26,145.94,145.87,10.5278]
[1642384340874,0.26,145.94,145.88,0.26]
[1642384342879,0.26,145.94,145.87,0.26]
[1642384343079,0.26,145.94,145.86,30.5417]
[1642384343278,0.26,145.94,145.86,0.25]
[1642384343481,9.84,145.93,145.85,1.89019805]
[1642384343679,40.77405636,145.92,145.84,1.89019805]
[1642384343877,9.84,145.91,145.84,2.14019805]
[1642384344276,10.09,145.91,145.84,2.14019805]
[1642384344678,10.09,145.91,145.84,0.25]
[1642384345079,10.09,145.91,145.83,10.3455]
[1642384345680,9.84,145.91,145.83,0.25]
[1642384345880,9.84,145.91,145.84,0.26]
[1642384346481,9.84,145.91,145.83,0.26]
[1642384346680,9.84,145.91,145.83,8.033]
[1642384346881,9.84,145.91,145.83,24.3134]
[1642384347181,9.84,145.91,145.83,24.5634]
[1642384347383,0.26,145.9,145.83,24.5634]
[1642384348587,0.26,145.9,145.83,26.45359805]
[1642384349485,0.26,145.9,145.84,1.89019805]
[1642384349684,0.26,145.9,145.84,12.16979805]
[1642384349886,0.26,145.9,145.85,0.26]
[1642384350285,9.84,145.89,145.83,1.89019805]
[1642384350488,226.15,145.88,145.77,4.99627646]
[1642384350687,68.15,145.86,145.77,4.99627646]
[1642384350889,68.15,145.84,145.77,4.99627646]
[1642384351087,9.84,145.83,145.77,4.99627646]
[1642384351286,35.28715018,145.82,145.7,17.30718248]
[1642384351487,9.84,145.81,145.7,17.30718248]
[1642384352490,10.09,145.81,145.7,85.45718248]
[1642384352689,9.84,145.81,145.7,85.45718248]
[1642384352892,9.84,145.81,145.7,91.45718248]
[1642384353491,9.84,145.81,145.7,101.74508248]
[1642384354795,9.84,145.81,145.71,0.26]
[1642384355399,9.84,145.81,145.71,10.5474]
[1642384355798,9.84,145.81,145.71,16.7974]
[1642384356398,9.84,145.81,145.73,1.86469468]
[1642384356811,9.84,145.81,145.74,0.26]
[1642384357002,4.84,145.81,145.74,0.26]
[1642384358000,9.84,145.87,145.75,68.15]
[1642384358202,9.84,145.9,145.75,68.15]
[1642384358402,9.84,145.92,145.76,59.20707317]
[1642384358604,23.0458,145.93,145.76,66.83907317]
[1642384358805,23.0458,145.93,145.77,1.00067317]
[1642384359025,10.2835,145.92,145.78,88.2733]
[1642384359228,10.5435,145.92,145.79,24.7151]
[1642384359526,10.5335,145.92,145.8,3.77271486]
[1642384359927,10.5335,145.92,145.8,10.02271486]
[1642384360326,10.2835,145.92,145.8,10.02271486]
[1642384360729,10.2835,145.92,145.8,19.86271486]
[1642384360927,23.0458,145.93,145.8,28.30438803]
[1642384361128,23.1184,145.95,145.8,28.30438803]
[1642384361331,29.1184,145.95,145.81,22.5256]
[1642384361627,29.1184,145.95,145.82,10.84067317]
[1642384361828,6.0,145.95,145.83,83.8091623]
[1642384362028,6.0,145.95,145.83,103.35263547]
[1642384362230,0.26,145.94,145.84,0.26]
[1642384362428,26.1207,145.96,145.84,1.26067317]
[1642384362627,0.26,145.95,145.84,1.26067317]
[1642384362833,0.26,145.95,145.84,7.51067317]
[1642384363031,0.26,145.95,145.84,17.78987317]
[1642384363229,0.26,145.95,145.84,85.93987317]
[1642384363529,48.49593357,145.97,145.84,85.93987317]
[1642384363728,48.49593357,145.97,145.85,1.00067317]
[1642384363932,48.49593357,145.97,145.86,3.77271486]
[1642384364128,48.49593357,145.97,145.86,71.92271486]
[1642384364329,48.74593357,145.97,145.86,78.17271486]
[1642384364830,0.26,145.96,145.86,78.17271486]
[1642384365832,10.2777,146.0,145.86,78.17271486]
[1642384366031,24.8405,146.02,145.87,9.84]
[1642384366233,9.84,146.03,145.87,9.84]
[1642384366434,36.26373938,146.02,145.88,0.26]
[1642384366632,36.26373938,146.02,145.89,9.84]
[1642384366831,52.54023938,146.02,145.9,15.9191623]
[1642384367234,0.26,146.01,145.9,22.1691623]
[1642384367635,0.26,146.01,145.9,0.51]
[1642384367832,10.537,146.01,145.9,0.25]
[1642384368031,10.787,146.01,145.89,15.84]
[1642384368233,16.787,146.01,145.88,23.9558]
[1642384368431,16.787,146.01,145.88,30.2058]
[1642384368632,16.787,146.01,145.88,6.25]
[1642384368832,16.787,146.01,145.88,0.25]
[1642384369035,16.787,146.01,145.88,6.25]
[1642384369233,16.787,146.01,145.89,0.26]
[1642384369534,16.787,146.01,145.89,6.418]
[1642384369734,10.787,146.01,145.9,3.51587909]
[1642384369932,16.787,146.01,145.91,0.26]
[1642384370132,10.787,146.01,145.91,0.26]
[1642384370335,16.527,146.01,145.91,0.26]
[1642384370633,10.527,146.01,145.91,0.26]
[1642384370835,16.527,146.01,145.91,0.26]
[1642384371035,16.527,146.01,145.9,6.25]
[1642384371236,16.527,146.01,145.9,0.25]
[1642384371444,16.527,146.01,145.87,16.09]
[1642384371836,0.26,146.0,145.87,16.09]
[1642384372041,10.2793,145.98,145.87,30.14397267]
[1642384372236,10.2793,145.98,145.87,16.09]
[1642384372237,47.37076422,145.97,145.87,16.09]
[1642384372436,47.62076422,145.97,145.87,16.09]
[1642384372637,0.25,145.97,145.87,16.09]
[1642384373239,23.0248,146.02,145.88,68.41]
[1642384373441,38.8648,146.02,145.88,6.51]
[1642384373739,43.01089428,146.01,145.89,15.24348394]
[1642384373939,43.01089428,146.01,145.9,0.26]
[1642384374339,43.26089428,146.01,145.9,0.26]
[1642384374540,53.53799428,146.01,145.9,0.26]
[1642384375241,3.57832565,146.05,145.9,68.41]
[1642384375442,3.57832565,146.05,145.91,10.8389779]
[1642384375642,10.1514,146.09,145.94,10.2723]
[1642384375843,10.1514,146.09,145.95,10.1]
[1642384376245,39.53937819,146.08,145.96,3.92839322]
[1642384376443,39.53937819,146.08,145.97,0.26]
[1642384377245,39.78937819,146.08,145.97,0.26]
[1642384377443,39.78937819,146.08,145.96,16.7819]
[1642384377444,10.2728,146.07,145.96,16.7819]
[1642384377647,10.5328,146.07,145.96,16.7819]
[1642384377844,10.7828,146.07,145.96,16.7819]
[1642384378244,16.7828,146.07,145.96,16.7819]
[1642384378448,16.7828,146.07,145.96,10.7819]
[1642384379847,16.2728,146.07,145.96,10.7819]
[1642384380249,10.2728,146.07,145.96,16.7819]
[1642384382350,0.26,146.06,145.96,16.7819]
[1642384382552,10.274,146.05,145.96,6.51]
[1642384382755,37.98416849,146.04,145.96,6.51]
[1642384382954,38.23416849,146.04,145.96,0.51]
[1642384383252,37.98416849,146.04,145.96,6.26]
[1642384383451,37.98416849,146.04,145.96,6.51]
[1642384384654,37.98416849,146.04,145.96,0.51]
[1642384384852,37.98416849,146.04,145.96,0.26]
[1642384387886,0.26,146.03,145.96,0.26]
[1642384388287,0.26,146.03,145.96,10.5328]
[1642384388488,0.26,146.03,145.96,16.5328]
[1642384388686,0.26,146.03,145.96,16.7828]
[1642384389586,0.26,146.03,145.96,6.51]
[1642384389987,0.26,146.03,145.96,0.51]
[1642384390187,0.26,146.03,145.96,0.26]
[1642384392392,0.26,146.03,145.96,10.5327]
[1642384392587,0.26,146.03,145.96,16.7827]
[1642384392987,0.26,146.03,145.96,10.7827]
[1642384393391,0.26,146.03,145.96,10.5227]
[1642384393789,0.26,146.03,145.96,0.25]
[1642384394190,0.26,146.03,145.95,10.09]
[1642384394793,0.26,146.03,145.96,0.26]
[1642384398795,0.26,146.03,145.95,0.26]
[1642384399897,0.26,146.03,145.94,10.5239]
[1642384400099,0.26,146.03,145.94,0.25]
[1642384400497,0.26,146.03,145.93,24.8478]
[1642384400697,0.26,146.03,145.93,0.25]
[1642384400898,0.26,146.03,145.9,39.5596]
[1642384401400,0.26,146.03,145.91,0.26]
[1642384401598,0.26,146.03,145.9,39.5596]
[1642384401997,0.26,146.03,145.9,39.3096]
[1642384402198,22.07637588,146.03,145.9,39.3096]
[1642384402398,28.32637588,146.03,145.9,33.3096]
[1642384403199,96.47637588,146.03,145.9,33.3096]
[1642384403399,96.47637588,146.03,145.9,33.5596]
[1642384403598,3.82441652,146.02,145.9,33.5596]
[1642384403799,48.91105391,146.01,145.9,29.7196]
[1642384404199,49.16105391,146.01,145.91,0.26]
[1642384404400,55.16105391,146.01,145.91,0.26]
[1642384404603,49.16105391,146.01,145.91,0.26]
[1642384405204,49.16105391,146.01,145.91,16.73986658]
[1642384405402,49.16105391,146.01,145.92,10.2754]
[1642384405801,49.16105391,146.01,145.92,10.5254]
[1642384406404,49.16105391,146.01,145.92,16.5254]
[1642384406602,49.16105391,146.01,145.92,10.5254]
[1642384407605,0.26,146.0,145.92,10.5254]
[1642384408204,0.26,146.0,145.92,16.5254]
[1642384409105,0.26,146.0,145.92,10.5254]
[1642384413208,0.26,146.0,145.92,10.2754]
[1642384414606,49.16105391,146.01,145.93,0.26]
[1642384414806,48.91105391,146.01,145.93,10.5345]
[1642384415207,48.91105391,146.01,145.93,16.7845]
[1642384416610,48.91105391,146.01,145.93,0.51]
[1642384416820,48.91105391,146.01,145.93,0.25]
[1642384417011,48.91105391,146.01,145.92,0.26]
[1642384417210,49.16105391,146.01,145.92,0.26]
[1642384417713,48.91105391,146.01,145.92,0.26]
[1642384417909,48.91105391,146.01,145.92,11.53422676]
[1642384418112,33.9804,146.05,145.92,11.53422676]
[1642384418312,34.2304,146.05,145.93,24.8343]
[1642384418710,34.2304,146.05,145.94,0.26]
[1642384419137,44.5049,146.05,145.94,0.26]
[1642384420037,43.12271131,146.04,145.94,0.26]
[1642384420236,53.39751131,146.04,145.94,0.26]
[1642384420437,53.64751131,146.04,145.94,0.26]
[1642384421836,0.26,146.03,145.94,0.26]
[1642384424039,10.5355,146.03,145.93,30.8343]
[1642384424239,10.5355,146.03,145.93,24.8343]
[1642384424442,10.7855,146.03,145.93,24.8343]
[1642384424639,20.6255,146.03,145.93,24.8343]
[1642384425243,3.89986408,146.02,145.93,24.8343]
[1642384425440,36.26720786,146.01,145.93,24.8343]
[1642384425844,36.51720786,146.01,145.93,24.8343]
[1642384426047,36.51720786,146.01,145.93,25.0843]
[1642384426672,36.26720786,146.01,145.93,25.0843]
[1642384427868,0.26,146.0,145.93,25.0843]
[1642384428072,0.26,146.0,145.93,24.8343]
[1642384429371,0.26,146.0,145.93,25.0843]
[1642384430393,0.26,146.0,145.9,23.4696]
[1642384430601,0.26,146.0,145.91,0.25]
[1642384431800,0.26,146.0,145.9,23.7196]
[1642384432303,0.26,146.0,145.91,0.26]
[1642384432505,46.35720786,146.01,145.91,23.399]
[1642384432905,46.35720786,146.01,145.91,29.649]
[1642384433404,56.38420786,146.01,145.91,39.9251]
[1642384433811,46.10720786,146.01,145.91,39.9251]
[1642384434003,46.10720786,146.01,145.92,68.15]
[1642384434207,36.26720786,146.01,145.92,68.15]
[1642384434404,36.26720786,146.01,145.93,1.25912676]
[1642384434805,36.26720786,146.01,145.93,7.50912676]
[1642384435007,36.26720786,146.01,145.93,32.42012676]
[1642384435408,36.26720786,146.01,145.94,10.2737]
[1642384435808,36.26720786,146.01,145.95,0.26]
[1642384437813,36.51720786,146.01,145.94,6.0]
[1642384438012,36.51720786,146.01,145.93,24.911]
[1642384438210,36.51720786,146.01,145.93,0.25]
[1642384438412,43.32720786,146.01,145.93,0.25]
[1642384438612,53.60420786,146.01,145.93,0.25]
[1642384439310,53.60420786,146.01,145.91,0.26]
[1642384440413,53.60420786,146.01,145.91,24.2049]
[1642384440612,53.60420786,146.01,145.91,23.9449]
[1642384440813,53.60420786,146.01,145.91,24.1949]
[1642384441017,59.60420786,146.01,145.91,24.1949]
[1642384441414,10.2791,145.98,145.91,24.1949]
[1642384441643,39.81370139,145.97,145.91,24.1949]
[1642384442347,40.06370139,145.97,145.9,29.4696]
[1642384442551,50.34350139,145.97,145.87,0.99912676]
[1642384442742,50.34350139,145.97,145.87,30.38842676]
[1642384443243,56.34350139,145.97,145.87,24.38842676]
[1642384443549,67.88427727,145.97,145.83,27.67995714]
[1642384443744,10.2827,145.93,145.83,27.67995714]
[1642384443943,17.7517,145.93,145.83,27.67995714]
[1642384444344,44.68367341,145.92,145.83,27.67995714]
[1642384444542,44.68367341,145.92,145.84,4.34251209]
[1642384444743,9.84,145.95,145.84,14.62311209]
[1642384444945,15.84,145.95,145.84,20.87311209]
[1642384445243,15.84,145.95,145.84,16.5306]
[1642384445443,15.84,145.95,145.85,0.26]
[1642384445644,26.3713,145.95,145.83,23.8016]
[1642384445849,32.7853,145.95,145.83,23.8016]
[1642384446345,39.36137438,145.94,145.83,23.8016]
[1642384446545,49.20137438,145.94,145.83,23.8016]
[1642384446749,49.45137438,145.94,145.83,23.8016]
[1642384446946,49.45137438,145.94,145.83,24.0516]
[1642384447349,55.45137438,145.94,145.83,24.0516]
[1642384447546,37.61181919,145.9,145.83,24.0516]
[1642384447946,37.86181919,145.9,145.81,35.1885]
[1642384448151,37.86181919,145.9,145.82,0.26]
[1642384451855,0.26,145.89,145.82,0.26]
[1642384457057,37.61181919,145.9,145.82,78.6922]
[1642384457257,22.8908,145.95,145.82,78.6922]
[1642384457457,23.1408,145.95,145.83,22.8901]
[1642384457660,9.84,145.97,145.83,32.9801]
[1642384457858,9.84,145.97,145.84,0.26]
[1642384458259,34.84766705,145.96,145.85,9.84]
[1642384458457,34.84766705,145.96,145.87,10.2785]
[1642384458859,34.84766705,145.96,145.88,0.26]
[1642384459958,34.84766705,145.96,145.87,0.25]
[1642384459959,0.26,145.95,145.87,0.26]
[1642384461164,34.84766705,145.96,145.87,0.26]
[1642384461363,35.09766705,145.96,145.87,0.26]
[1642384461563,35.09766705,145.96,145.87,10.5387]
[1642384461775,9.84,146.0,145.87,12.61741971]
[1642384461972,39.5978,146.0,145.87,18.61741971]
[1642384462170,49.8755,146.0,145.87,18.61741971]
[1642384462569,49.8755,146.0,145.88,24.2935]
[1642384462768,37.33397955,145.99,145.88,34.5713]
[1642384462970,37.33397955,145.99,145.89,0.26]
[1642384463168,43.33397955,145.99,145.89,0.26]
[1642384463869,43.58397955,145.99,145.89,0.26]
[1642384464068,43.58397955,145.99,145.89,10.5375]
[1642384464368,43.58397955,145.99,145.89,16.7875]
[1642384464572,53.86227955,145.99,145.9,22.8885]
[1642384464869,0.26,145.98,145.91,0.26]
[1642384467470,0.26,145.98,145.91,10.5361]
[1642384467670,37.33397955,145.99,145.91,10.5361]
[1642384467895,37.33397955,145.99,145.91,16.7861]
[1642384473800,37.33397955,145.99,145.91,16.5261]
[1642384473999,37.58397955,145.99,145.91,10.5261]
[1642384474199,37.58397955,145.99,145.91,0.25]
[1642384474400,37.58397955,145.99,145.91,0.26]
[1642384474801,37.33397955,145.99,145.91,0.26]
[1642384476001,0.26,145.98,145.91,0.26]
[1642384484715,0.26,145.98,145.9,39.1654]
[1642384484913,0.26,145.98,145.9,33.1654]
[1642384485114,0.26,145.98,145.9,22.8885]
[1642384485315,0.26,145.98,145.9,23.1385]
[1642384486218,0.26,145.98,145.9,29.1385]
[1642384491123,39.52579584,145.99,145.9,29.1385]
[1642384491323,39.52579584,145.99,145.91,0.26]
[1642384491722,1.94181629,145.98,145.91,0.26]
[1642384493324,37.58397955,145.99,145.91,10.536]
[1642384493325,39.52579584,145.99,145.91,10.536]
[1642384493725,39.27579584,145.99,145.91,16.786]
[1642384496553,39.27579584,145.99,145.91,6.0]
[1642384496753,39.52579584,145.99,145.91,6.0]
[1642384496953,37.58397955,145.99,145.9,28.8885]
[1642384497955,1.94181629,145.98,145.9,29.1385]
[1642384498355,0.26,145.97,145.9,29.1385]
[1642384500858,2.20181629,145.97,145.9,29.1385]
[1642384501057,1.94181629,145.97,145.9,29.1385]
[1642384501964,0.26,145.96,145.9,29.1385]
[1642384502564,1.94181629,145.98,145.9,29.1385]
[1642384502763,0.26,145.97,145.9,29.1385]
[1642384503861,2.20181629,145.97,145.9,29.1385]
[1642384504065,1.94181629,145.97,145.9,29.1385]
[1642384504259,0.26,145.96,145.9,29.1385]
[1642384507962,0.26,145.96,145.9,39.4154]
[1642384508373,2.19181629,145.98,145.9,39.1654]
[1642384508562,1.94181629,145.98,145.91,0.26]
[1642384509565,37.33397955,145.99,145.91,0.26]
[1642384510464,37.33397955,145.99,145.91,10.5361]
[1642384510664,37.33397955,145.99,145.91,16.7861]
[1642384511868,0.26,145.98,145.91,16.7861]
[1642384514372,37.33397955,145.99,145.91,16.7861]
[1642384514569,39.27579584,145.99,145.91,16.7861]
[1642384514976,39.52579584,145.99,145.91,16.7861]
[1642384515369,39.52579584,145.99,145.91,16.5261]
[1642384515971,0.26,145.98,145.9,22.8885]
[1642384516173,0.26,145.98,145.9,6.0]
[1642384516369,0.26,145.98,145.88,24.41252085]
[1642384516771,2.20181629,145.98,145.88,24.41252085]
[1642384516972,2.45181629,145.98,145.88,1.84882085]
[1642384517372,2.45181629,145.98,145.88,2.09882085]
[1642384517872,40.90924928,145.95,145.85,1.84882085]
[1642384518173,74.90794928,145.95,145.85,12.12902085]
[1642384518375,75.15794928,145.95,145.85,18.12902085]
[1642384518574,75.15794928,145.95,145.86,22.9036]
[1642384518974,75.15794928,145.95,145.86,29.1536]
[1642384519578,75.15794928,145.95,145.86,28.9036]
[1642384520607,75.15794928,145.95,145.86,6.26]
[1642384521006,75.15794928,145.95,145.86,0.26]
[1642384521211,75.15794928,145.95,145.86,6.26]
[1642384521907,77.09976557,145.95,145.86,6.51]
[1642384522306,77.09976557,145.95,145.86,30.7143]
[1642384522708,0.26,145.94,145.86,30.7143]
[1642384522907,0.26,145.94,145.86,6.51]
[1642384523408,0.26,145.94,145.86,0.51]
[1642384523609,0.26,145.94,145.86,0.26]
[1642384530016,0.26,145.94,145.86,23.2774]
[1642384530414,0.26,145.94,145.86,29.5274]
[1642384531916,0.26,145.94,145.86,6.0]
[1642384532419,0.26,145.94,145.84,31.86232085]
[1642384532918,0.26,145.94,145.84,30.0135]
[1642384533318,0.26,145.94,145.85,0.26]
[1642384533917,0.26,145.94,145.85,24.4333]
[1642384534317,0.26,145.94,145.85,30.6833]
[1642384534718,0.26,145.94,145.85,40.9634]
[1642384536422,0.26,145.94,145.85,42.81222085]
[1642384537322,64.87684928,145.95,145.85,42.81222085]
[1642384537820,64.62684928,145.95,145.85,42.81222085]
[1642384538019,40.90924928,145.95,145.85,42.81222085]
[1642384538221,35.62561629,145.98,145.85,42.81222085]